[Event "*** SCC Grand Prix: Titled Tuesday Blitz"]
[Site "Chess.com"]
[Date "2020.06.02"]
[Round "2"]
[White "Alex_Molchanov"]
[Black "gmyarick"]
[Result "0-1"]
[WhiteElo "2503"]
[BlackElo "2752"]
[TimeControl "180+1"]
[EndTime "10:16:57 PDT"]
[Termination "gmyarick won by resignation"]

1. d4 {[%clk 0:02:59.9]} 1... Nf6 {[%clk 0:03:00]} 2. Nf3 {[%clk 0:02:59.6]}
2... g6 {[%clk 0:03:00.4]} 3. g3 {[%clk 0:02:59.7]} 3... Bg7 {[%clk 0:03:01.3]}
4. Bg2 {[%clk 0:03:00.3]} 4... O-O {[%clk 0:03:01.8]} 5. O-O {[%clk 0:03:00.9]}
5... d5 {[%clk 0:03:02.7]} 6. c4 {[%clk 0:02:59.9]} 6... dxc4 {[%clk 0:03:03]}
7. Na3 {[%clk 0:02:58.7]} 7... c3 {[%clk 0:03:03.2]} 8. bxc3 {[%clk 0:02:58.6]}
8... c5 {[%clk 0:03:04.1]} 9. e3 {[%clk 0:02:49.1]} 9... Nc6 {[%clk 0:03:02.5]}
10. Nc4 {[%clk 0:02:44.5]} 10... Bf5 {[%clk 0:02:48.9]} 11. Nfe5 {[%clk
0:02:41.9]} 11... Nxe5 {[%clk 0:02:44]} 12. Nxe5 {[%clk 0:02:42.8]} 12... Qc7
{[%clk 0:02:35.3]} 13. Ba3 {[%clk 0:02:37.8]} 13... Ne4 {[%clk 0:02:00.8]} 14.
g4 {[%clk 0:02:04.9]} 14... Nxc3 {[%clk 0:02:00.5]} 15. Qe1 {[%clk 0:01:59.5]}
15... cxd4 {[%clk 0:01:48.8]} 16. exd4 {[%clk 0:01:52]} 16... Nb5 {[%clk
0:01:41.1]} 17. Rc1 {[%clk 0:01:31.6]} 17... Qd8 {[%clk 0:01:40]} 18. gxf5
{[%clk 0:00:37.7]} 18... Nxa3 {[%clk 0:01:33.5]} 19. fxg6 {[%clk 0:00:36.6]}
19... hxg6 {[%clk 0:01:32.4]} 20. Nxg6 {[%clk 0:00:27.3]} 20... fxg6 {[%clk
0:01:19.8]} 21. Qe6+ {[%clk 0:00:26.2]} 21... Kh7 {[%clk 0:01:15.6]} 22. Qh3+
{[%clk 0:00:20.7]} 22... Bh6 {[%clk 0:01:15.8]} 23. Qxa3 {[%clk 0:00:20.3]}
23... Bxc1 {[%clk 0:01:15.2]} 24. Rxc1 {[%clk 0:00:21.2]} 24... Qxd4 {[%clk
0:01:08.9]} 25. Qxe7+ {[%clk 0:00:19]} 25... Kh8 {[%clk 0:01:08.6]} 26. Kh1
{[%clk 0:00:13.5]} 26... Rae8 {[%clk 0:01:05.3]} 27. Qg5 {[%clk 0:00:10.6]}
27... Qf4 {[%clk 0:01:01.6]} 28. Qc5 {[%clk 0:00:08.6]} 28... Qxf2 {[%clk
0:00:58.9]} 29. Qc3+ {[%clk 0:00:08.7]} 29... Qf6 {[%clk 0:00:58.1]} 30. Qc7
{[%clk 0:00:08.6]} 30... Re2 {[%clk 0:00:55.9]} 31. Qxb7 {[%clk 0:00:07.5]}
31... Qf2 {[%clk 0:00:52.2]} 32. Rf1 {[%clk 0:00:06.7]} 32... Re1 {[%clk
0:00:51.4]} 33. Qb2+ {[%clk 0:00:04.5]} 33... Qxb2 {[%clk 0:00:50.3]} 34. Rxe1
{[%clk 0:00:04.7]} 34... Qxa2 {[%clk 0:00:49.1]} 0-1

[Event "*** SCC Grand Prix: Titled Tuesday Blitz"]
[Site "Chess.com"]
[Date "2020.06.02"]
[Round "2"]
[White "IngOscarArdila"]
[Black "sorrm8thatscheckm8"]
[Result "0-1"]
[WhiteElo "2071"]
[BlackElo "2381"]
[TimeControl "180+1"]
[EndTime "10:16:57 PDT"]
[Termination "sorrm8thatscheckm8 won by checkmate"]

1. d4 {[%clk 0:03:00.9]} 1... Nf6 {[%clk 0:02:59.5]} 2. c4 {[%clk 0:02:57.9]}
2... g6 {[%clk 0:02:59.4]} 3. Nc3 {[%clk 0:02:57.3]} 3... Bg7 {[%clk 0:02:59.8]}
4. e4 {[%clk 0:02:57.2]} 4... d6 {[%clk 0:03:00.7]} 5. Nf3 {[%clk 0:02:57]} 5...
O-O {[%clk 0:03:01.3]} 6. Be2 {[%clk 0:02:57.3]} 6... e5 {[%clk 0:03:01]} 7. O-O
{[%clk 0:02:55.5]} 7... Nbd7 {[%clk 0:03:00.1]} 8. Bg5 {[%clk 0:02:53]} 8... h6
{[%clk 0:02:59]} 9. Bxf6 {[%clk 0:02:52.8]} 9... Bxf6 {[%clk 0:02:58.4]} 10. d5
{[%clk 0:02:52]} 10... Bg7 {[%clk 0:02:58]} 11. b4 {[%clk 0:02:51.8]} 11... a5
{[%clk 0:02:56.8]} 12. a3 {[%clk 0:02:51.7]} 12... f5 {[%clk 0:02:55.7]} 13. Nd2
{[%clk 0:02:48.5]} 13... f4 {[%clk 0:02:54.7]} 14. Bg4 {[%clk 0:02:47.7]} 14...
Nf6 {[%clk 0:02:52.1]} 15. Bxc8 {[%clk 0:02:46]} 15... Qxc8 {[%clk 0:02:53]} 16.
f3 {[%clk 0:02:45.1]} 16... g5 {[%clk 0:02:53.1]} 17. c5 {[%clk 0:02:45.2]}
17... g4 {[%clk 0:02:50.2]} 18. Nc4 {[%clk 0:02:44.2]} 18... Ne8 {[%clk
0:02:39.5]} 19. Nb5 {[%clk 0:02:38]} 19... Qd7 {[%clk 0:02:32.6]} 20. Nc3 {[%clk
0:02:14.9]} 20... gxf3 {[%clk 0:02:08.4]} 21. Qxf3 {[%clk 0:02:11.7]} 21... Qe7
{[%clk 0:01:58.9]} 22. cxd6 {[%clk 0:02:09]} 22... cxd6 {[%clk 0:01:58.9]} 23.
Nb6 {[%clk 0:02:06.8]} 23... Ra6 {[%clk 0:01:51.3]} 24. Nca4 {[%clk 0:01:47.1]}
24... axb4 {[%clk 0:01:47.9]} 25. axb4 {[%clk 0:01:47]} 25... Rf6 {[%clk
0:01:40]} 26. b5 {[%clk 0:01:44.4]} 26... Ra5 {[%clk 0:01:36.6]} 27. Rab1 {[%clk
0:01:38.3]} 27... Rg6 {[%clk 0:01:14.8]} 28. Rf2 {[%clk 0:01:33.7]} 28... Qg5
{[%clk 0:01:00.9]} 29. Kh1 {[%clk 0:01:29]} 29... Qh4 {[%clk 0:00:51.8]} 30.
Rfb2 {[%clk 0:01:15]} 30... Rg3 {[%clk 0:00:47.8]} 31. Qf2 {[%clk 0:01:13.6]}
31... Nf6 {[%clk 0:00:42.9]} 32. Kg1 {[%clk 0:01:11.3]} 32... Ng4 {[%clk
0:00:37.5]} 33. hxg3 {[%clk 0:00:44.1]} 33... Qh2+ {[%clk 0:00:36.6]} 34. Kf1
{[%clk 0:00:44.2]} 34... Nxf2 {[%clk 0:00:36.5]} 35. Rxf2 {[%clk 0:00:44.1]}
35... Qh1+ {[%clk 0:00:35.4]} 36. Ke2 {[%clk 0:00:43.2]} 36... Qxb1 {[%clk
0:00:35.6]} 37. Kf3 {[%clk 0:00:41.5]} 37... Qd3+ {[%clk 0:00:33.1]} 38. Kg4
{[%clk 0:00:41.1]} 38... Qxg3+ {[%clk 0:00:32.7]} 39. Kh5 {[%clk 0:00:40.9]}
39... Qg5# {[%clk 0:00:32.7]} 0-1

[Event "*** SCC Grand Prix: Titled Tuesday Blitz"]
[Site "Chess.com"]
[Date "2020.06.02"]
[Round "2"]
[White "chito89"]
[Black "MilosJi"]
[Result "1-0"]
[WhiteElo "2800"]
[BlackElo "2523"]
[TimeControl "180+1"]
[EndTime "10:17:00 PDT"]
[Termination "chito89 won by resignation"]

1. Nf3 {[%clk 0:03:00.9]} 1... d5 {[%clk 0:02:59.3]} 2. g3 {[%clk 0:02:59.5]}
2... c6 {[%clk 0:02:59]} 3. c4 {[%clk 0:02:56.4]} 3... Nf6 {[%clk 0:02:57.3]} 4.
Bg2 {[%clk 0:02:56.3]} 4... e6 {[%clk 0:02:57.4]} 5. b3 {[%clk 0:02:55.5]} 5...
Be7 {[%clk 0:02:57.5]} 6. O-O {[%clk 0:02:54.8]} 6... O-O {[%clk 0:02:57.4]} 7.
Bb2 {[%clk 0:02:55.3]} 7... Nbd7 {[%clk 0:02:57.4]} 8. Nc3 {[%clk 0:02:49.7]}
8... b6 {[%clk 0:02:56.4]} 9. Rc1 {[%clk 0:02:48.3]} 9... Bb7 {[%clk 0:02:56.4]}
10. d4 {[%clk 0:02:48.4]} 10... Rc8 {[%clk 0:02:56.2]} 11. Qd3 {[%clk
0:02:44.1]} 11... Rc7 {[%clk 0:02:13.2]} 12. Rfd1 {[%clk 0:02:18.5]} 12... Qb8
{[%clk 0:02:11.8]} 13. e4 {[%clk 0:02:15.7]} 13... Rfc8 {[%clk 0:02:06.9]} 14.
e5 {[%clk 0:01:58.1]} 14... Ne8 {[%clk 0:02:05.6]} 15. Qe3 {[%clk 0:01:34.7]}
15... a5 {[%clk 0:01:56.4]} 16. h4 {[%clk 0:01:32.2]} 16... Ba6 {[%clk
0:01:56.3]} 17. Bf1 {[%clk 0:01:16.4]} 17... Qa8 {[%clk 0:01:54.9]} 18. Bd3
{[%clk 0:01:04.4]} 18... Nf8 {[%clk 0:01:52.6]} 19. Qf4 {[%clk 0:00:49]} 19...
Qb7 {[%clk 0:01:39.3]} 20. Ng5 {[%clk 0:00:42.9]} 20... Bd8 {[%clk 0:01:23.7]}
21. Ba3 {[%clk 0:00:42.9]} 21... h6 {[%clk 0:01:21.1]} 22. Nh3 {[%clk
0:00:39.4]} 22... b5 {[%clk 0:01:15]} 23. Bxf8 {[%clk 0:00:32.6]} 23... Kxf8
{[%clk 0:01:13.9]} 24. c5 {[%clk 0:00:33.1]} 24... b4 {[%clk 0:01:08]} 25. Na4
{[%clk 0:00:30.7]} 25... Bxd3 {[%clk 0:01:02.3]} 26. Rxd3 {[%clk 0:00:31.6]}
26... Kg8 {[%clk 0:01:00.6]} 27. Qg4 {[%clk 0:00:31.3]} 27... Re7 {[%clk
0:00:57.2]} 28. Nf4 {[%clk 0:00:31]} 28... Qd7 {[%clk 0:00:48.1]} 29. Rf3 {[%clk
0:00:28.5]} 29... f5 {[%clk 0:00:39.6]} 30. Qg6 {[%clk 0:00:18.9]} 30... Nc7
{[%clk 0:00:39.7]} 31. Nb6 {[%clk 0:00:17.9]} 31... Qe8 {[%clk 0:00:34.8]} 32.
Nxc8 {[%clk 0:00:18]} 32... Rf7 {[%clk 0:00:30.8]} 33. Nd6 {[%clk 0:00:17.4]}
1-0

[Event "*** SCC Grand Prix: Titled Tuesday Blitz"]
[Site "Chess.com"]
[Date "2020.06.02"]
[Round "2"]
[White "m_ezat"]
[Black "Pultis"]
[Result "1-0"]
[WhiteElo "2537"]
[BlackElo "2769"]
[TimeControl "180+1"]
[EndTime "10:17:01 PDT"]
[Termination "m_ezat won by resignation"]

1. d4 {[%clk 0:02:43.9]} 1... Nf6 {[%clk 0:02:58.9]} 2. c4 {[%clk 0:02:43.1]}
2... g6 {[%clk 0:02:59.1]} 3. Nc3 {[%clk 0:02:41.4]} 3... d5 {[%clk 0:02:59.5]}
4. Bg5 {[%clk 0:02:40.6]} 4... Ne4 {[%clk 0:02:57.2]} 5. cxd5 {[%clk 0:02:40.1]}
5... Nxg5 {[%clk 0:02:49.2]} 6. h4 {[%clk 0:02:39.4]} 6... Ne4 {[%clk
0:02:34.7]} 7. Nxe4 {[%clk 0:02:39.4]} 7... Qxd5 {[%clk 0:02:34.9]} 8. Qd3
{[%clk 0:02:39.7]} 8... Bg7 {[%clk 0:02:19.1]} 9. Nf3 {[%clk 0:02:37.5]} 9...
Nc6 {[%clk 0:02:03.6]} 10. Nc3 {[%clk 0:02:36.8]} 10... Qa5 {[%clk 0:02:02.8]}
11. e3 {[%clk 0:02:36.6]} 11... O-O {[%clk 0:01:57]} 12. Qb5 {[%clk 0:02:33.7]}
12... Qxb5 {[%clk 0:01:37.3]} 13. Bxb5 {[%clk 0:02:32.6]} 13... a6 {[%clk
0:01:37.6]} 14. Bxc6 {[%clk 0:02:30.4]} 14... bxc6 {[%clk 0:01:38.5]} 15. h5
{[%clk 0:02:27.9]} 15... Rb8 {[%clk 0:01:36.1]} 16. hxg6 {[%clk 0:02:19.5]}
16... hxg6 {[%clk 0:01:33.3]} 17. Na4 {[%clk 0:02:15.4]} 17... Be6 {[%clk
0:00:57.5]} 18. b3 {[%clk 0:02:11.5]} 18... Bd5 {[%clk 0:00:57.6]} 19. Nc5
{[%clk 0:02:11.5]} 19... Ra8 {[%clk 0:00:51.3]} 20. Ke2 {[%clk 0:02:04.6]} 20...
f6 {[%clk 0:00:44]} 21. Rac1 {[%clk 0:01:53.3]} 21... a5 {[%clk 0:00:44.2]} 22.
Rc3 {[%clk 0:01:44.7]} 22... Rfd8 {[%clk 0:00:33.2]} 23. Rhc1 {[%clk 0:01:40.7]}
23... Rd6 {[%clk 0:00:33]} 24. Nh4 {[%clk 0:01:29]} 24... Bf7 {[%clk 0:00:24.1]}
25. Nf3 {[%clk 0:01:29]} 25... Bd5 {[%clk 0:00:23.6]} 26. Nd2 {[%clk 0:01:25.3]}
26... f5 {[%clk 0:00:19.2]} 27. Nc4 {[%clk 0:01:22.8]} 27... Rdd8 {[%clk
0:00:12]} 28. Nd3 {[%clk 0:01:15.5]} 28... Be4 {[%clk 0:00:08.3]} 29. Nce5
{[%clk 0:01:04.9]} 29... a4 {[%clk 0:00:07.1]} 30. b4 {[%clk 0:01:01.4]} 30...
Rd6 {[%clk 0:00:05.3]} 31. Nxc6 {[%clk 0:00:56.5]} 31... Bd5 {[%clk 0:00:03.3]}
32. Nxe7+ {[%clk 0:00:55.9]} 32... Kh7 {[%clk 0:00:03.8]} 33. Rh1+ {[%clk
0:00:50.3]} 33... Bh6 {[%clk 0:00:03.5]} 34. Nxd5 {[%clk 0:00:50.5]} 34... Rd7
{[%clk 0:00:04.1]} 35. Nf6+ {[%clk 0:00:49.9]} 1-0

[Event "*** SCC Grand Prix: Titled Tuesday Blitz"]
[Site "Chess.com"]
[Date "2020.06.02"]
[Round "2"]
[White "fidezivkovic"]
[Black "capatl"]
[Result "0-1"]
[WhiteElo "2252"]
[BlackElo "2460"]
[TimeControl "180+1"]
[EndTime "10:17:01 PDT"]
[Termination "capatl won on time"]

1. e4 {[%clk 0:02:24.7]} 1... c5 {[%clk 0:02:53.2]} 2. Nc3 {[%clk 0:02:23.9]}
2... e6 {[%clk 0:02:52.9]} 3. Nge2 {[%clk 0:02:23.2]} 3... a6 {[%clk 0:02:52.5]}
4. g3 {[%clk 0:02:22.1]} 4... b5 {[%clk 0:02:52.5]} 5. Bg2 {[%clk 0:02:21.8]}
5... Bb7 {[%clk 0:02:52.3]} 6. O-O {[%clk 0:02:21.2]} 6... d6 {[%clk 0:02:52.2]}
7. d4 {[%clk 0:02:20.4]} 7... cxd4 {[%clk 0:02:51.4]} 8. Nxd4 {[%clk 0:02:19.6]}
8... Nd7 {[%clk 0:02:51.8]} 9. f4 {[%clk 0:02:06.7]} 9... Qc7 {[%clk 0:02:38.4]}
10. Be3 {[%clk 0:02:03.4]} 10... Ngf6 {[%clk 0:02:33.8]} 11. a3 {[%clk
0:01:59.7]} 11... Nc5 {[%clk 0:02:29.6]} 12. Qe2 {[%clk 0:01:53.3]} 12... Ncxe4
{[%clk 0:02:27]} 13. Nxe4 {[%clk 0:01:51.5]} 13... Bxe4 {[%clk 0:02:23.8]} 14.
f5 {[%clk 0:01:34]} 14... e5 {[%clk 0:02:18.5]} 15. Nxb5 {[%clk 0:01:09.3]}
15... Qb7 {[%clk 0:02:03.8]} 16. Bxe4 {[%clk 0:00:50.7]} 16... Nxe4 {[%clk
0:02:01.1]} 17. Nc3 {[%clk 0:00:42.5]} 17... Nxc3 {[%clk 0:01:59.6]} 18. bxc3
{[%clk 0:00:41.6]} 18... Be7 {[%clk 0:02:00.2]} 19. f6 {[%clk 0:00:34.8]} 19...
Bxf6 {[%clk 0:01:56.8]} 20. c4 {[%clk 0:00:33.3]} 20... Be7 {[%clk 0:01:49.6]}
21. Qg4 {[%clk 0:00:27.3]} 21... O-O {[%clk 0:01:37]} 22. Bh6 {[%clk 0:00:25.1]}
22... g6 {[%clk 0:01:36.9]} 23. Bxf8 {[%clk 0:00:24]} 23... Rxf8 {[%clk
0:01:37.8]} 24. Rab1 {[%clk 0:00:22.3]} 24... Qc6 {[%clk 0:01:36.6]} 25. h4
{[%clk 0:00:18.3]} 25... h5 {[%clk 0:01:24.5]} 26. Qf3 {[%clk 0:00:17.4]} 26...
Qxc4 {[%clk 0:01:20.8]} 27. Rb7 {[%clk 0:00:15.6]} 27... Qe6 {[%clk 0:01:20.4]}
28. Qc6 {[%clk 0:00:09.4]} 28... e4 {[%clk 0:01:15.4]} 29. Qxa6 {[%clk
0:00:07.8]} 29... Bf6 {[%clk 0:01:11.2]} 30. Qe2 {[%clk 0:00:05.2]} 30... Kg7
{[%clk 0:01:02.5]} 31. Kh2 {[%clk 0:00:04.1]} 31... Rc8 {[%clk 0:00:53.9]} 32.
Qf2 {[%clk 0:00:01.8]} 32... e3 {[%clk 0:00:52.8]} 0-1

[Event "*** SCC Grand Prix: Titled Tuesday Blitz"]
[Site "Chess.com"]
[Date "2020.06.02"]
[Round "2"]
[White "flexova"]
[Black "Khamrakulov_Djurabek"]
[Result "0-1"]
[WhiteElo "2523"]
[BlackElo "2824"]
[TimeControl "180+1"]
[EndTime "10:17:03 PDT"]
[Termination "Khamrakulov_Djurabek won on time"]

1. Nf3 {[%clk 0:03:00.9]} 1... d5 {[%clk 0:02:59.3]} 2. g3 {[%clk 0:03:01.2]}
2... g6 {[%clk 0:02:59.6]} 3. Bg2 {[%clk 0:03:01.1]} 3... Bg7 {[%clk 0:03:00]}
4. d4 {[%clk 0:03:01.6]} 4... c5 {[%clk 0:02:58.5]} 5. dxc5 {[%clk 0:02:57]}
5... Qa5+ {[%clk 0:02:55.3]} 6. Bd2 {[%clk 0:02:45.4]} 6... Qxc5 {[%clk
0:02:54.3]} 7. Bc3 {[%clk 0:02:45.8]} 7... Nf6 {[%clk 0:02:54.1]} 8. O-O {[%clk
0:02:46.1]} 8... Nc6 {[%clk 0:02:53.3]} 9. Nbd2 {[%clk 0:02:33.6]} 9... O-O
{[%clk 0:02:49.7]} 10. Nb3 {[%clk 0:02:33.8]} 10... Qd6 {[%clk 0:02:49.4]} 11.
Nbd4 {[%clk 0:02:23.4]} 11... Ne4 {[%clk 0:02:40.7]} 12. Nxc6 {[%clk 0:02:06.6]}
12... Nxc3 {[%clk 0:02:40]} 13. Nxe7+ {[%clk 0:02:04.8]} 13... Qxe7 {[%clk
0:02:40.7]} 14. bxc3 {[%clk 0:02:05.2]} 14... Bxc3 {[%clk 0:02:40.7]} 15. Rb1
{[%clk 0:02:04]} 15... Rd8 {[%clk 0:02:34.1]} 16. Nd4 {[%clk 0:01:55.9]} 16...
Bg4 {[%clk 0:02:21]} 17. Qd3 {[%clk 0:01:23.9]} 17... Rac8 {[%clk 0:01:54.5]}
18. Rb3 {[%clk 0:01:08.1]} 18... Bxd4 {[%clk 0:01:46.9]} 19. Qxd4 {[%clk
0:01:07.3]} 19... Qxe2 {[%clk 0:01:29.9]} 20. Rxb7 {[%clk 0:00:51.6]} 20... Be6
{[%clk 0:01:27.1]} 21. Rxa7 {[%clk 0:00:45.2]} 21... Qxc2 {[%clk 0:01:23.9]} 22.
h4 {[%clk 0:00:32.3]} 22... Qc4 {[%clk 0:01:10.9]} 23. Qf6 {[%clk 0:00:29.9]}
23... d4 {[%clk 0:00:59]} 24. h5 {[%clk 0:00:21.7]} 24... d3 {[%clk 0:00:59]}
25. hxg6 {[%clk 0:00:16.4]} 25... hxg6 {[%clk 0:00:58.7]} 26. Bf3 {[%clk
0:00:11.1]} 26... d2 {[%clk 0:00:55.4]} 27. Kg2 {[%clk 0:00:11.5]} 27... Bd5
{[%clk 0:00:51.2]} 28. Rh1 {[%clk 0:00:09.4]} 28... Bxf3+ {[%clk 0:00:45.5]} 29.
Qxf3 {[%clk 0:00:08.1]} 29... Qd5 {[%clk 0:00:36.2]} 30. Rd1 {[%clk 0:00:07.7]}
30... Rc1 {[%clk 0:00:34.1]} 0-1

[Event "*** SCC Grand Prix: Titled Tuesday Blitz"]
[Site "Chess.com"]
[Date "2020.06.02"]
[Round "2"]
[White "Vesper2018"]
[Black "BlackBoarder"]
[Result "1-0"]
[WhiteElo "2354"]
[BlackElo "2630"]
[TimeControl "180+1"]
[EndTime "10:17:03 PDT"]
[Termination "Vesper2018 won by resignation"]

1. e4 {[%clk 0:03:00.1]} 1... e6 {[%clk 0:02:59.6]} 2. d4 {[%clk 0:02:58.4]}
2... d5 {[%clk 0:02:59.8]} 3. e5 {[%clk 0:02:58.7]} 3... c5 {[%clk 0:02:59.3]}
4. c3 {[%clk 0:02:58.9]} 4... Nc6 {[%clk 0:02:54.3]} 5. Nf3 {[%clk 0:02:58.7]}
5... Bd7 {[%clk 0:02:54.1]} 6. Be2 {[%clk 0:02:57.3]} 6... f6 {[%clk 0:02:53.8]}
7. O-O {[%clk 0:02:54.8]} 7... fxe5 {[%clk 0:02:53.8]} 8. dxe5 {[%clk
0:02:52.2]} 8... Qc7 {[%clk 0:02:52.8]} 9. Re1 {[%clk 0:02:52.3]} 9... Nh6
{[%clk 0:02:49.3]} 10. c4 {[%clk 0:02:41.5]} 10... d4 {[%clk 0:02:48.8]} 11. Bd3
{[%clk 0:02:38.7]} 11... Nf7 {[%clk 0:02:46.5]} 12. Qe2 {[%clk 0:02:33.3]} 12...
O-O-O {[%clk 0:02:39]} 13. Na3 {[%clk 0:02:31.2]} 13... a6 {[%clk 0:02:31.5]}
14. Nc2 {[%clk 0:02:30.7]} 14... g5 {[%clk 0:02:03.1]} 15. Nxg5 {[%clk
0:02:02.5]} 15... Nfxe5 {[%clk 0:02:01.6]} 16. Bf4 {[%clk 0:01:45.1]} 16... Bg7
{[%clk 0:01:46.1]} 17. Nf7 {[%clk 0:01:27.7]} 17... Rdf8 {[%clk 0:01:32.4]} 18.
Bxe5 {[%clk 0:01:19.7]} 18... Nxe5 {[%clk 0:01:24.6]} 19. Nxe5 {[%clk
0:01:19.3]} 19... Be8 {[%clk 0:01:20.9]} 20. b4 {[%clk 0:01:14.7]} 20... cxb4
{[%clk 0:01:14.3]} 21. Nxd4 {[%clk 0:01:07.3]} 21... Qd6 {[%clk 0:01:04.5]} 22.
Qe4 {[%clk 0:00:40.1]} 22... Rhg8 {[%clk 0:00:29.2]} 23. c5 {[%clk 0:00:38.6]}
23... Qe7 {[%clk 0:00:21.9]} 24. c6 {[%clk 0:00:32.4]} 24... b6 {[%clk
0:00:21.4]} 25. c7 {[%clk 0:00:31.1]} 25... b5 {[%clk 0:00:14.7]} 26. Rac1
{[%clk 0:00:24]} 26... Bxe5 {[%clk 0:00:11.7]} 27. Qa8+ {[%clk 0:00:23.3]} 27...
Kd7 {[%clk 0:00:10.1]} 28. c8=Q+ {[%clk 0:00:22.7]} 1-0

[Event "*** SCC Grand Prix: Titled Tuesday Blitz"]
[Site "Chess.com"]
[Date "2020.06.02"]
[Round "2"]
[White "Blitzking642"]
[Black "FMJoseHerrera"]
[Result "0-1"]
[WhiteElo "2297"]
[BlackElo "2641"]
[TimeControl "180+1"]
[EndTime "10:17:03 PDT"]
[Termination "FMJoseHerrera won by resignation"]

1. d4 {[%clk 0:03:00.9]} 1... Nf6 {[%clk 0:02:58.2]} 2. c4 {[%clk 0:03:01.3]}
2... c5 {[%clk 0:02:55.8]} 3. d5 {[%clk 0:03:00.7]} 3... b5 {[%clk 0:02:55.8]}
4. cxb5 {[%clk 0:02:58.4]} 4... a6 {[%clk 0:02:56.1]} 5. b6 {[%clk 0:02:58.8]}
5... g6 {[%clk 0:02:55.3]} 6. Nc3 {[%clk 0:02:58.8]} 6... Bg7 {[%clk 0:02:55.5]}
7. e4 {[%clk 0:02:58.5]} 7... O-O {[%clk 0:02:54.8]} 8. Nf3 {[%clk 0:02:52.3]}
8... Qxb6 {[%clk 0:02:53.4]} 9. Nd2 {[%clk 0:02:48.8]} 9... d6 {[%clk
0:02:51.1]} 10. a4 {[%clk 0:02:44.1]} 10... Qb4 {[%clk 0:02:50.3]} 11. Be2
{[%clk 0:02:34.8]} 11... e6 {[%clk 0:02:40.4]} 12. O-O {[%clk 0:02:22.9]} 12...
exd5 {[%clk 0:02:39.1]} 13. exd5 {[%clk 0:02:23.8]} 13... Bf5 {[%clk 0:02:32.4]}
14. Nc4 {[%clk 0:02:20.8]} 14... Rd8 {[%clk 0:02:26.7]} 15. Bd2 {[%clk
0:02:19.7]} 15... Qb7 {[%clk 0:02:25.8]} 16. Bf4 {[%clk 0:02:19]} 16... Ne8
{[%clk 0:02:09.1]} 17. Qd2 {[%clk 0:02:14.5]} 17... Qc7 {[%clk 0:01:55.4]} 18.
Rfe1 {[%clk 0:02:02.1]} 18... h5 {[%clk 0:01:53.1]} 19. h3 {[%clk 0:02:00]}
19... Nf6 {[%clk 0:01:36]} 20. Bf3 {[%clk 0:01:48.1]} 20... Nbd7 {[%clk
0:01:34.5]} 21. Bxd6 {[%clk 0:01:46.4]} 21... Qb7 {[%clk 0:01:23.9]} 22. Be7
{[%clk 0:01:45.8]} 22... Qb4 {[%clk 0:01:22.2]} 23. Bxd8 {[%clk 0:01:38.2]}
23... Rxd8 {[%clk 0:01:23.1]} 24. Ne3 {[%clk 0:01:35.9]} 24... Ne5 {[%clk
0:01:21.5]} 25. Be2 {[%clk 0:01:19.9]} 25... Bc8 {[%clk 0:01:19.5]} 26. Red1
{[%clk 0:01:11.2]} 26... Qb8 {[%clk 0:01:10.7]} 27. Nc4 {[%clk 0:00:59]} 27...
Nc6 {[%clk 0:01:05.3]} 28. dxc6 {[%clk 0:00:52.3]} 28... Rxd2 {[%clk 0:01:04.8]}
29. Rxd2 {[%clk 0:00:53.2]} 29... Qc7 {[%clk 0:01:02.2]} 30. Bf3 {[%clk
0:00:50.6]} 30... Be6 {[%clk 0:01:02.3]} 31. Rad1 {[%clk 0:00:41.3]} 31... Bxc4
{[%clk 0:00:59.4]} 32. Rd8+ {[%clk 0:00:41.5]} 32... Kh7 {[%clk 0:00:59.5]} 33.
Ra8 {[%clk 0:00:27.4]} 33... Be6 {[%clk 0:00:55.8]} 34. Rdd8 {[%clk 0:00:26.6]}
34... g5 {[%clk 0:00:50.4]} 35. Ne4 {[%clk 0:00:25.3]} 35... Qf4 {[%clk
0:00:48]} 36. Nxc5 {[%clk 0:00:18.3]} 36... Qc1+ {[%clk 0:00:47.2]} 37. Kh2
{[%clk 0:00:15.1]} 37... Qxc5 {[%clk 0:00:48.1]} 0-1

[Event "*** SCC Grand Prix: Titled Tuesday Blitz"]
[Site "Chess.com"]
[Date "2020.06.02"]
[Round "2"]
[White "kinga2008"]
[Black "Smile2005"]
[Result "0-1"]
[WhiteElo "2164"]
[BlackElo "2414"]
[TimeControl "180+1"]
[EndTime "10:17:05 PDT"]
[Termination "Smile2005 won by resignation"]

1. e4 {[%clk 0:03:00.4]} 1... d5 {[%clk 0:02:59.6]} 2. exd5 {[%clk 0:03:00]}
2... Nf6 {[%clk 0:03:00]} 3. Nc3 {[%clk 0:02:59]} 3... Nxd5 {[%clk 0:03:00.3]}
4. Nf3 {[%clk 0:02:59.5]} 4... Bg4 {[%clk 0:03:00.2]} 5. Bc4 {[%clk 0:02:58.1]}
5... e6 {[%clk 0:03:00.7]} 6. Bxd5 {[%clk 0:02:57.4]} 6... exd5 {[%clk
0:03:00.8]} 7. d4 {[%clk 0:02:58.3]} 7... Be7 {[%clk 0:02:59]} 8. O-O {[%clk
0:02:58]} 8... O-O {[%clk 0:02:59.5]} 9. h3 {[%clk 0:02:57.9]} 9... Bh5 {[%clk
0:02:59.5]} 10. Bf4 {[%clk 0:02:58.2]} 10... c6 {[%clk 0:02:59.6]} 11. Qd3
{[%clk 0:02:57.6]} 11... Bg6 {[%clk 0:02:59.5]} 12. Qd2 {[%clk 0:02:57.6]} 12...
Nd7 {[%clk 0:02:57.6]} 13. Ne5 {[%clk 0:02:55.9]} 13... Nxe5 {[%clk 0:02:57.8]}
14. Bxe5 {[%clk 0:02:55.4]} 14... f6 {[%clk 0:02:55.5]} 15. Bh2 {[%clk
0:02:54.7]} 15... Qb6 {[%clk 0:02:55]} 16. Rae1 {[%clk 0:02:42.8]} 16... Bb4
{[%clk 0:02:53.5]} 17. a3 {[%clk 0:02:29.6]} 17... Bxc3 {[%clk 0:02:42.5]} 18.
Qxc3 {[%clk 0:02:29.3]} 18... Rfe8 {[%clk 0:02:42.5]} 19. b3 {[%clk 0:02:21.6]}
19... Qb5 {[%clk 0:02:38]} 20. a4 {[%clk 0:02:20.1]} 20... Qa6 {[%clk
0:02:38.2]} 21. Bd6 {[%clk 0:02:16.7]} 21... Re2 {[%clk 0:02:28.4]} 22. Rxe2
{[%clk 0:01:59.8]} 22... Qxe2 {[%clk 0:02:27.5]} 23. Qb4 {[%clk 0:01:53.8]}
23... b6 {[%clk 0:02:04.1]} 24. c4 {[%clk 0:01:48.3]} 24... dxc4 {[%clk
0:02:03.6]} 25. bxc4 {[%clk 0:01:42.3]} 25... Bf7 {[%clk 0:02:04]} 26. c5 {[%clk
0:01:38.7]} 26... h5 {[%clk 0:01:54.2]} 27. Re1 {[%clk 0:01:32.1]} 27... Qc2
{[%clk 0:01:45.6]} 28. cxb6 {[%clk 0:01:25.3]} 28... axb6 {[%clk 0:01:41.2]} 29.
Qxb6 {[%clk 0:01:19.7]} 29... Rxa4 {[%clk 0:01:40.3]} 30. Qd8+ {[%clk
0:01:18.8]} 30... Kh7 {[%clk 0:01:38]} 31. Qf8 {[%clk 0:01:09.2]} 31... Qg6
{[%clk 0:01:26]} 32. Re3 {[%clk 0:01:04.9]} 32... h4 {[%clk 0:01:09.6]} 33. Re7
{[%clk 0:00:57.3]} 33... Ra1+ {[%clk 0:01:00]} 34. Kh2 {[%clk 0:00:55.8]} 34...
Qb1 {[%clk 0:00:41.6]} 0-1